[Event "CZE-ch Youth G10-G12-G14 2022"]
[Site "Luhacovice"]
[Date "2022.03.14"]
[Round "4.1"]
[White "Romanko Diana"]
[Black "Vancakova, Veronika"]
[Result "0-1"]
[ECO "C55"]
[WhiteElo "1000"]
[BlackElo "1300"]
[Annotator "NA"]
[PlyCount "110"]
[EventDate "2022.03.12"]
[EventType "swiss"]
[EventCountry "CZE"]
[SourceTitle "playchess.com"]
[Source "ChessBase"]
[SourceQuality "1"]
[TimeControl "40/5400+30:1800+30"]

1. e4 {[%emt 0:00:15]} e5 {[%emt 0:00:03]} 2. Nf3 {[%emt 0:00:10]} Nf6 {[%emt 0:00:05]} 3. Nc3 {[%emt 0:01:00]} Nc6 {[%emt 0:00:05]} 4. Bc4 {[%emt 0:00:53]} Nxe4 {[%emt 0:01:18]} 5. Bxf7+ {[%emt 0:01:27]} Kxf7 {[%emt 0:00:08]} 6. Nxe4 {[%emt 0:00:08]} d5 {[%emt 0:01:02]} 7. Nc3 {[%emt 0:02:08]} e4 {[%emt 0:05:28]} 8. Ng1 {[%emt 0:01:43]} Be6 {[%emt 0:02:52]} 9. d3 {[%emt 0:01:32]} exd3 {[%emt 0:04:36]} 10. cxd3 {[%emt 0:01:05]} Be7 {[%emt 0:05:31]} 11. Nf3 {[%emt 0:01:21]} h6 {[%emt 0:06:12]} 12. O-O {[%emt 0:01:59]} Re8 {[%emt 0:01:33]} 13. Re1 {[%emt 0:02:39]} Bf6 {[%emt 0:00:33]} 14. h3 {[%emt 0:02:56]} Qd7 {[%emt 0:03:00]} 15. Bf4 {[%emt 0:03:28]} a6 {[%emt 0:01:08]} 16. Be5 {[%emt 0:01:23]} Rad8 {[%emt 0:24:31]} 17. d4 {[%emt 0:02:41]} Ne7 {[%emt 0:09:48]} 18. Qd3 {[%emt 0:07:12]} Bf5 {[%emt 0:03:36]} 19. Qe3 {[%emt 0:02:07]} Ng6 {[%emt 0:02:24]} 20. Rac1 {[%emt 0:03:21]} Bxe5 {[%emt 0:08:33]} 21. dxe5 {[%emt 0:01:47]} d4 {[%emt 0:01:24]} 22. Qd2 {[%emt 0:04:01]} dxc3 {[%emt 0:00:29]} 23. Qxc3 {[%emt 0:01:39]} c6 {[%emt 0:01:09]} 24. Qb3+ {[%emt 0:02:00]} Be6 {[%emt 0:00:22]} 25. Qa4 {[%emt 0:01:45]} Kg8 {[%emt 0:02:51]} 26. Rcd1 {[%emt 0:00:46]} Qf7 {[%emt 0:00:49]} 27. b3 {[%emt 0:02:39]} Bd5 {[%emt 0:02:30]} 28. Qg4 {[%emt 0:02:48]} Bxf3 {[%emt 0:04:18]} 29. gxf3 {[%emt 0:00:59]} Rxd1 {[%emt 0:00:44]} 30. Rxd1 {[%emt 0:00:20]} Nxe5 {[%emt 0:00:17]} 31. Qb4 {[%emt 0:00:46]} Nxf3+ {[%emt 0:00:38]} 32. Kg2 {[%emt 0:00:28]} Ne5 {[%emt 0:00:33]} 33. Qc3 {[%emt 0:01:11]} Qg6+ {[%emt 0:00:34]} 34. Kf1 {[%emt 0:02:40]} Qf6 {[%emt 0:01:53]} 35. Qg3 {[%emt 0:01:58]} Rf8 {[%emt 0:01:04]} 36. Rd2 {[%emt 0:00:44]} Qf4 {[%emt 0:00:31]} 37. Qxf4 {[%emt 0:01:22]} Rxf4 {[%emt 0:00:06]} 38. Rd8+ {[%emt 0:00:26]} Rf8 {[%emt 0:00:06]} 39. Rd2 {[%emt 0:00:19]} Kf7 {[%emt 0:00:09]} 40. Re2 {[%emt 0:00:42]} Kf6 {[%emt 0:00:22]} 41. f4 {[%emt 0:31:37]} Ng6 {[%emt 0:30:32]} 42. Rf2 {[%emt 0:00:39]} Kf5 {[%emt 0:00:14]} 43. Kg2 {[%emt 0:01:19]} Rd8 {[%emt 0:01:21]} 44. Kg3 {[%emt 0:01:12]} Rd3+ {[%emt 0:00:08]} 45. Kg2 {[%emt 0:00:20]} Nxf4+ {[%emt 0:00:09]} 46. Kg1 {[%emt 0:00:45]} Rd1+ {[%emt 0:02:00]} 47. Kh2 {[%emt 0:00:12]} Re1 {[%emt 0:00:10]} 48. h4 {[%emt 0:00:29]} Re2 {[%emt 0:00:13]} 49. Rxe2 {[%emt 0:00:06]} Nxe2 {[%emt 0:00:05]} 50. Kg2 {[%emt 0:00:07]} Nc1 {[%emt 0:00:16]} 51. Kf2 {[%emt 0:00:19]} Nxa2 {[%emt 0:00:11]} 52. Ke2 {[%emt 0:00:18]} g5 {[%emt 0:00:30]} 53. hxg5 {[%emt 0:00:22]} Kxg5 {[%emt 0:00:09]} 54. Kf2 {[%emt 0:00:06]} c5 {[%emt 0:00:04]} 55. Kg3 {[%emt 0:00:23]} b5 {[%emt 0:00:08]} 0-1

[Event "CZE-ch Youth G10-G12-G14 2022"]
[Site "Luhacovice"]
[Date "2022.03.14"]
[Round "4.2"]
[White "Lickova, Anna"]
[Black "Janouskova, Eliska"]
[Result "0-1"]
[ECO "B40"]
[WhiteElo "1016"]
[BlackElo "1167"]
[Annotator "NA"]
[PlyCount "96"]
[EventDate "2022.03.12"]
[EventType "swiss"]
[EventCountry "CZE"]
[SourceTitle "playchess.com"]
[Source "ChessBase"]
[SourceQuality "1"]
[TimeControl "40/5400+30:1800+30"]

1. e4 {[%emt 0:00:03]} c5 {[%emt 0:00:23]} 2. Nf3 {[%emt 0:00:32]} e6 {[%emt 0:00:37]} 3. d4 {[%emt 0:00:46]} cxd4 {[%emt 0:00:32]} 4. Nxd4 {[%emt 0:00:10]} Nf6 {[%emt 0:00:43]} 5. Nc3 {[%emt 0:02:44]} Bb4 {[%emt 0:01:49]} 6. Bd3 {[%emt 0:01:20]} O-O {[%emt 0:04:58]} 7. Bd2 {[%emt 0:00:39]} Be7 {[%emt 0:02:28]} 8. Qe2 {[%emt 0:01:19]} Nc6 {[%emt 0:03:23]} 9. Nf3 {[%emt 0:01:38]} a6 {[%emt 0:03:30]} 10. h3 {[%emt 0:03:08]} b5 {[%emt 0:04:08]} 11. a3 {[%emt 0:00:59]} Qc7 {[%emt 0:03:54]} 12. g4 {[%emt 0:02:22]} h6 {[%emt 0:03:44]} 13. g5 {[%emt 0:00:41]} hxg5 {[%emt 0:00:42]} 14. Bxg5 {[%emt 0:01:32]} Nh7 {[%emt 0:00:49]} 15. h4 {[%emt 0:05:25]} d6 {[%emt 0:07:47]} 16. Rg1 {[%emt 0:01:18]} Nxg5 {[%emt 0:10:09]} 17. hxg5 {[%emt 0:00:22]} Bb7 {[%emt 0:02:38]} 18. Rh1 {[%emt 0:01:02]} g6 {[%emt 0:03:14]} 19. Qf1 {[%emt 0:01:03]} Kg7 {[%emt 0:00:27]} 20. Rh4 {[%emt 0:05:25]} Ne5 {[%emt 0:02:55]} 21. Nxe5 {[%emt 0:00:41]} dxe5 {[%emt 0:00:14]} 22. Qh3 {[%emt 0:01:24]} Rh8 {[%emt 0:00:38]} 23. O-O-O {[%emt 0:01:09]} Bxg5+ {[%emt 0:00:26]} 24. Kb1 {[%emt 0:07:01]} Bxh4 {[%emt 0:00:24]} 25. f3 {[%emt 0:06:07]} Bf2 {[%emt 0:01:00]} 26. Qg2 {[%emt 0:02:43]} Bd4 {[%emt 0:00:48]} 27. Ne2 {[%emt 0:03:07]} b4 {[%emt 0:03:35]} 28. a4 {[%emt 0:01:38]} b3 {[%emt 0:01:19]} 29. cxb3 {[%emt 0:00:30]} Rac8 {[%emt 0:01:29]} 30. Nxd4 {[%emt 0:00:43]} exd4 {[%emt 0:00:10]} 31. Bc4 {[%emt 0:01:26]} Qe5 {[%emt 0:01:50]} 32. Qf2 {[%emt 0:00:58]} Rcd8 {[%emt 0:02:11]} 33. Ka1 {[%emt 0:04:06]} d3 {[%emt 0:00:56]} 34. Bxd3 {[%emt 0:01:27]} Rh2 {[%emt 0:00:08]} 35. Qxh2 {[%emt 0:01:38]} Qxh2 {[%emt 0:00:12]} 36. Ka2 {[%emt 0:00:30]} Qd6 {[%emt 0:00:35]} 37. Ka1 {[%emt 0:00:26]} Qxd3 {[%emt 0:00:35]} 38. Rxd3 {[%emt 0:02:14]} Rxd3 {[%emt 0:00:14]} 39. b4 {[%emt 0:00:40]} Rxf3 {[%emt 0:00:12]} 40. b5 {[%emt 0:00:33]} Re3 {[%emt 0:00:28]} 41. b6 {[%emt 0:31:23]} Bxe4 {[%emt 0:30:14]} 42. a5 {[%emt 0:00:16]} Bd5 {[%emt 0:00:44]} 43. Kb1 {[%emt 0:00:10]} Re2 {[%emt 0:01:08]} 44. Kc1 {[%emt 0:00:18]} f5 {[%emt 0:00:41]} 45. Kb1 {[%emt 0:00:49]} f4 {[%emt 0:00:23]} 46. Kc1 {[%emt 0:00:07]} f3 {[%emt 0:00:08]} 47. Kb1 {[%emt 0:01:32]} f2 {[%emt 0:00:07]} 48. Ka1 {[%emt 0:01:07]} f1=Q# {[%emt 0:00:22]} 0-1

[Event "CZE-ch Youth G10-G12-G14 2022"]
[Site "Luhacovice"]
[Date "2022.03.14"]
[Round "4.3"]
[White "Vanickova Natalie"]
[Black "Kusova, Nikola"]
[Result "0-1"]
[ECO "C42"]
[WhiteElo "1000"]
[BlackElo "1227"]
[Annotator "NA"]
[PlyCount "126"]
[EventDate "2022.03.12"]
[EventType "swiss"]
[EventCountry "CZE"]
[SourceTitle "playchess.com"]
[Source "ChessBase"]
[SourceQuality "1"]
[TimeControl "40/5400+30:1800+30"]

1. e4 {[%emt 0:00:04]} e5 {[%emt 0:00:14]} 2. Nf3 {[%emt 0:00:18]} Nf6 {[%emt 0:00:28]} 3. Nxe5 {[%emt 0:00:19]} d6 {[%emt 0:00:14]} 4. Nxf7 {[%emt 0:00:35]} Kxf7 {[%emt 0:01:02]} 5. d4 {[%emt 0:00:52]} Be7 {[%emt 0:01:31]} 6. Bc4+ {[%emt 0:00:45]} Ke8 {[%emt 0:01:04]} 7. Nc3 {[%emt 0:00:41]} Nxe4 {[%emt 0:01:37]} 8. Qh5+ {[%emt 0:02:21]} g6 {[%emt 0:01:31]} 9. Qf3 {[%emt 0:01:43]} Nf6 {[%emt 0:01:14]} 10. O-O {[%emt 0:01:11]} Nc6 {[%emt 0:02:12]} 11. Be3 {[%emt 0:02:49]} Bf5 {[%emt 0:02:39]} 12. d5 {[%emt 0:03:32]} Ne5 {[%emt 0:01:58]} 13. Qf4 {[%emt 0:02:19]} Nxc4 {[%emt 0:01:50]} 14. Qxc4 {[%emt 0:01:48]} Qd7 {[%emt 0:01:43]} 15. b4 {[%emt 0:01:47]} c6 {[%emt 0:04:36]} 16. a4 {[%emt 0:01:57]} Ng4 {[%emt 0:10:49]} 17. Bf4 {[%emt 0:05:26]} Bf6 {[%emt 0:03:18]} 18. Rae1+ {[%emt 0:04:01]} Kd8 {[%emt 0:01:32]} 19. b5 {[%emt 0:03:07]} Bxc3 {[%emt 0:03:11]} 20. Qxc3 {[%emt 0:00:29]} Re8 {[%emt 0:02:36]} 21. Qa5+ {[%emt 0:02:20]} b6 {[%emt 0:01:53]} 22. Qc3 {[%emt 0:01:48]} Ne5 {[%emt 0:12:47]} 23. bxc6 {[%emt 0:03:21]} Qc7 {[%emt 0:01:08]} 24. Bg5+ {[%emt 0:04:09]} Kc8 {[%emt 0:00:44]} 25. Re2 {[%emt 0:04:12]} Bg4 {[%emt 0:10:26]} 26. Re3 {[%emt 0:01:37]} Rf8 {[%emt 0:05:48]} 27. Bh6 {[%emt 0:02:58]} Rf5 {[%emt 0:02:01]} 28. f3 {[%emt 0:01:17]} Bxf3 {[%emt 0:04:14]} 29. gxf3 {[%emt 0:01:26]} Nf7 {[%emt 0:06:28]} 30. Bg7 {[%emt 0:02:18]} Rxd5 {[%emt 0:02:29]} 31. Rfe1 {[%emt 0:04:21]} Nd8 {[%emt 0:01:15]} 32. Qc4 {[%emt 0:04:31]} Qxc6 {[%emt 0:01:49]} 33. Qg4+ {[%emt 0:02:33]} Qd7 {[%emt 0:03:02]} 34. Rc3+ {[%emt 0:03:06]} Rc5 {[%emt 0:01:29]} 35. Rxc5+ {[%emt 0:01:16]} dxc5 {[%emt 0:01:35]} 36. Qe4 {[%emt 0:03:14]} Nc6 {[%emt 0:03:23]} 37. Bf6 {[%emt 0:04:55]} Kc7 {[%emt 0:01:47]} 38. Qf4+ {[%emt 0:04:41]} Qd6 {[%emt 0:00:31]} 39. Be5 {[%emt 0:01:28]} Nxe5 {[%emt 0:00:14]} 40. Rxe5 {[%emt 0:00:46]} Qd4+ {[%emt 0:00:48]} 41. Qe3 {[%emt 0:31:43]} Qxe3+ {[%emt 0:30:13]} 42. Rxe3 {[%emt 0:00:42]} Rd8 {[%emt 0:00:25]} 43. Re7+ {[%emt 0:00:22]} Rd7 {[%emt 0:00:08]} 44. Re3 {[%emt 0:01:21]} Rd1+ {[%emt 0:00:12]} 45. Kf2 {[%emt 0:00:29]} Rd2+ {[%emt 0:00:11]} 46. Kg3 {[%emt 0:00:24]} Rxc2 {[%emt 0:00:14]} 47. Re7+ {[%emt 0:00:23]} Kb8 {[%emt 0:00:25]} 48. Rxh7 {[%emt 0:00:32]} Rd2 {[%emt 0:00:31]} 49. h4 {[%emt 0:00:28]} c4 {[%emt 0:00:18]} 50. Rh8+ {[%emt 0:00:56]} Kb7 {[%emt 0:00:09]} 51. Rg8 {[%emt 0:01:35]} c3 {[%emt 0:00:24]} 52. Rg7+ {[%emt 0:00:26]} Ka6 {[%emt 0:00:26]} 53. Rc7 {[%emt 0:00:17]} c2 {[%emt 0:00:21]} 54. Kg4 {[%emt 0:02:07]} b5 {[%emt 0:01:15]} 55. axb5+ {[%emt 0:00:32]} Kxb5 {[%emt 0:00:20]} 56. Kg5 {[%emt 0:03:17]} Rd5+ {[%emt 0:00:21]} 57. Kxg6 {[%emt 0:00:07]} Rc5 {[%emt 0:00:23]} 58. Rb7+ {[%emt 0:00:51]} Ka6 {[%emt 0:00:27]} 59. Rb2 {[%emt 0:01:02]} c1=Q {[%emt 0:00:17]} 60. Ra2+ {[%emt 0:00:19]} Ra5 {[%emt 0:00:13]} 61. Re2 {[%emt 0:01:12]} Qb1+ {[%emt 0:01:03]} 62. Kg7 {[%emt 0:01:01]} Qf5 {[%emt 0:00:43]} 63. Rg2 {[%emt 0:00:30]} Qxf3 {[%emt 0:00:36]} 0-1

[Event "CZE-ch Youth G10-G12-G14 2022"]
[Site "Luhacovice"]
[Date "2022.03.14"]
[Round "4.4"]
[White "Lackova, Lucie"]
[Black "Mazurkova Viktorie"]
[Result "1-0"]
[ECO "C44"]
[WhiteElo "1142"]
[BlackElo "1000"]
[Annotator "NA"]
[PlyCount "49"]
[EventDate "2022.03.12"]
[EventType "swiss"]
[EventCountry "CZE"]
[SourceTitle "playchess.com"]
[Source "ChessBase"]
[SourceQuality "1"]
[TimeControl "40/5400+30:1800+30"]

1. e4 {[%emt 0:00:03]} e5 {[%emt 0:00:10]} 2. Nf3 {[%emt 0:00:17]} Nc6 {[%emt 0:00:32]} 3. d4 {[%emt 0:00:10]} f6 {[%emt 0:00:22]} 4. Bb5 {[%emt 0:01:00]} a6 {[%emt 0:00:22]} 5. Bc4 {[%emt 0:03:44]} Nh6 {[%emt 0:01:03]} 6. O-O {[%emt 0:00:30]} d6 {[%emt 0:00:30]} 7. Nc3 {[%emt 0:09:37]} Bg4 {[%emt 0:02:52]} 8. d5 {[%emt 0:00:30]} Nd4 {[%emt 0:00:30]} 9. Be2 {[%emt 0:00:30]} c5 {[%emt 0:00:30]} 10. Nxd4 {[%emt 0:00:30]} exd4 {[%emt 0:00:30]} 11. Bxg4 {[%emt 0:00:30]} Nxg4 {[%emt 0:00:30]} 12. Qxg4 {[%emt 0:00:30]} dxc3 {[%emt 0:00:30]} 13. bxc3 {[%emt 0:00:30]} Qc8 {[%emt 0:00:29]} 14. Qe2 {[%emt 0:19:49]} f5 {[%emt 0:10:00]} 15. exf5+ {[%emt 0:00:30]} Be7 {[%emt 0:00:30]} 16. Bg5 {[%emt 0:00:30]} Qd7 {[%emt 0:00:30]} 17. Rfe1 {[%emt 0:00:30]} O-O {[%emt 0:00:30]} 18. Qxe7 {[%emt 0:00:30]} Qe8 {[%emt 0:00:30]} 19. Qxd6 {[%emt 0:00:30]} Qc8 {[%emt 0:00:30]} 20. f6 {[%emt 0:00:30]} g6 {[%emt 0:00:30]} 21. Re7 {[%emt 0:00:30]} Qf5 {[%emt 0:00:30]} 22. Rg7+ {[%emt 0:00:30]} Kh8 {[%emt 0:00:30]} 23. Rxh7+ {[%emt 0:00:30]} Kg8 {[%emt 0:00:30]} 24. Qe7 {[%emt 0:00:30]} Qxg5 {[%emt 0:00:30]} 25. Qg7# {[%emt 0:59:50]} 1-0

[Event "CZE-ch Youth G10-G12-G14 2022"]
[Site "Luhacovice"]
[Date "2022.03.14"]
[Round "4.5"]
[White "Hujova Tess"]
[Black "Koutna Simona"]
[Result "1-0"]
[ECO "A29"]
[WhiteElo "1000"]
[BlackElo "1000"]
[Annotator "NA"]
[PlyCount "74"]
[EventDate "2022.03.12"]
[EventType "swiss"]
[EventCountry "CZE"]
[SourceTitle "playchess.com"]
[Source "ChessBase"]
[SourceQuality "1"]
[TimeControl "40/5400+30:1800+30"]

1. c4 {[%emt 0:00:05]} e5 {[%emt 0:00:10]} 2. Nc3 {[%emt 0:00:11]} Nf6 {[%emt 0:00:17]} 3. g3 {[%emt 0:00:21]} d5 {[%emt 0:00:14]} 4. cxd5 {[%emt 0:00:14]} Nxd5 {[%emt 0:00:16]} 5. Bg2 {[%emt 0:00:42]} Nb6 {[%emt 0:00:15]} 6. d3 {[%emt 0:00:44]} Be7 {[%emt 0:00:53]} 7. Be3 {[%emt 0:00:34]} O-O {[%emt 0:00:29]} 8. Nf3 {[%emt 0:01:07]} Nc6 {[%emt 0:00:14]} 9. O-O {[%emt 0:01:26]} Be6 {[%emt 0:02:12]} 10. Rc1 {[%emt 0:02:07]} Nd5 {[%emt 0:03:27]} 11. a3 {[%emt 0:01:38]} Nxe3 {[%emt 0:01:38]} 12. fxe3 {[%emt 0:00:42]} Qd7 {[%emt 0:01:57]} 13. d4 {[%emt 0:02:37]} exd4 {[%emt 0:01:34]} 14. exd4 {[%emt 0:00:18]} Bh3 {[%emt 0:01:43]} 15. d5 {[%emt 0:02:28]} Bxg2 {[%emt 0:01:04]} 16. Kxg2 {[%emt 0:00:29]} Na5 {[%emt 0:01:07]} 17. b4 {[%emt 0:02:28]} Nc4 {[%emt 0:02:41]} 18. Qd4 {[%emt 0:01:54]} Nxa3 {[%emt 0:02:36]} 19. Ne5 {[%emt 0:00:29]} Qd6 {[%emt 0:04:27]} 20. Rf4 {[%emt 0:01:20]} f6 {[%emt 0:04:20]} 21. Nd3 {[%emt 0:01:07]} c6 {[%emt 0:02:28]} 22. dxc6 {[%emt 0:00:57]} Qxd4 {[%emt 0:00:33]} 23. Rxd4 {[%emt 0:00:26]} bxc6 {[%emt 0:00:26]} 24. Rd7 {[%emt 0:00:56]} Rfe8 {[%emt 0:02:37]} 25. Rc7 {[%emt 0:00:38]} Nb5 {[%emt 0:03:12]} 26. Rxc6 {[%emt 0:00:54]} Nd4 {[%emt 0:02:41]} 27. Rc7 {[%emt 0:02:08]} Bd6 {[%emt 0:01:42]} 28. Rd7 {[%emt 0:01:40]} Nxe2 {[%emt 0:01:15]} 29. Nxe2 {[%emt 0:00:09]} Rxe2+ {[%emt 0:01:14]} 30. Kf3 {[%emt 0:00:47]} Re6 {[%emt 0:01:06]} 31. Rc6 {[%emt 0:00:36]} a5 {[%emt 0:01:50]} 32. bxa5 {[%emt 0:00:54]} Rxa5 {[%emt 0:00:16]} 33. Rcxd6 {[%emt 0:00:43]} Rxd6 {[%emt 0:00:53]} 34. Rxd6 {[%emt 0:00:39]} Ra3 {[%emt 0:02:13]} 35. Ke4 {[%emt 0:01:05]} Ra4+ {[%emt 0:00:33]} 36. Kf5 {[%emt 0:00:30]} Ra5+ {[%emt 0:00:32]} 37. Ke6 {[%emt 0:00:24]} Ra2 {[%emt 0:01:14]} 1-0

[Event "CZE-ch Youth G10-G12-G14 2022"]
[Site "Luhacovice"]
[Date "2022.03.14"]
[Round "4.6"]
[White "Rudova Jana"]
[Black "Stepankova Linda"]
[Result "0-1"]
[ECO "B13"]
[WhiteElo "1000"]
[BlackElo "1000"]
[Annotator "NA"]
[PlyCount "62"]
[EventDate "2022.03.12"]
[EventType "swiss"]
[EventCountry "CZE"]
[SourceTitle "playchess.com"]
[Source "ChessBase"]
[SourceQuality "1"]
[TimeControl "40/5400+30:1800+30"]

1. e4 {[%emt 0:00:08]} c6 {[%emt 0:00:02]} 2. d4 {[%emt 0:00:12]} d5 {[%emt 0:00:03]} 3. exd5 {[%emt 0:00:09]} cxd5 {[%emt 0:00:03]} 4. Nf3 {[%emt 0:00:56]} Bg4 {[%emt 0:00:36]} 5. Nc3 {[%emt 0:00:22]} Nf6 {[%emt 0:00:14]} 6. Bd3 {[%emt 0:00:19]} Nc6 {[%emt 0:01:05]} 7. O-O {[%emt 0:00:45]} Nxd4 {[%emt 0:00:43]} 8. Be2 {[%emt 0:00:20]} Nxe2+ {[%emt 0:02:40]} 9. Qxe2 {[%emt 0:00:41]} e6 {[%emt 0:01:01]} 10. Bg5 {[%emt 0:02:26]} Bd6 {[%emt 0:05:50]} 11. Nxd5 {[%emt 0:01:50]} Bxh2+ {[%emt 0:02:11]} 12. Kxh2 {[%emt 0:00:36]} Qxd5 {[%emt 0:01:49]} 13. Bxf6 {[%emt 0:07:41]} gxf6 {[%emt 0:00:30]} 14. Rad1 {[%emt 0:00:30]} Qh5+ {[%emt 0:00:47]} 15. Kg1 {[%emt 0:00:22]} Ke7 {[%emt 0:04:15]} 16. Qd2 {[%emt 0:01:54]} Bxf3 {[%emt 0:04:00]} 17. Qd7+ {[%emt 0:00:20]} Kf8 {[%emt 0:00:48]} 18. Qd6+ {[%emt 0:00:17]} Kg7 {[%emt 0:02:36]} 19. Qg3+ {[%emt 0:00:24]} Kh6 {[%emt 0:06:29]} 20. Qf4+ {[%emt 0:02:22]} Kg6 {[%emt 0:00:30]} 21. Qg3+ {[%emt 0:00:30]} Kf5 {[%emt 0:00:32]} 22. Qxf3+ {[%emt 0:01:21]} Qxf3 {[%emt 0:00:16]} 23. gxf3 {[%emt 0:00:38]} Rhg8+ {[%emt 0:00:30]} 24. Kh1 {[%emt 0:00:30]} Kf4 {[%emt 0:01:04]} 25. Rd3 {[%emt 0:00:35]} Rad8 {[%emt 0:01:45]} 26. Kh2 {[%emt 0:00:17]} Rxd3 {[%emt 0:00:02]} 27. cxd3 {[%emt 0:00:38]} Kxf3 {[%emt 0:00:03]} 28. Re1 {[%emt 0:02:11]} Kxf2 {[%emt 0:00:30]} 29. Re4 {[%emt 0:00:30]} f5 {[%emt 0:00:53]} 30. Re5 {[%emt 0:00:28]} Rg5 {[%emt 0:01:11]} 31. Kh3 {[%emt 0:00:40]} Rh5# {[%emt 0:00:09]} 0-1

[Event "CZE-ch Youth G10-G12-G14 2022"]
[Site "Luhacovice"]
[Date "2022.03.14"]
[Round "4.8"]
[White "Ramseier, Jana S."]
[Black "Jenikova Sabina"]
[Result "1-0"]
[ECO "C27"]
[WhiteElo "2090"]
[BlackElo "1076"]
[Annotator "ChessBase"]
[PlyCount "129"]
[EventDate "2022.03.12"]
[EventType "swiss"]
[EventCountry "CZE"]
[SourceTitle "playchess.com"]
[Source "ChessBase"]
[SourceQuality "1"]
[TimeControl "40/5400+30:1800+30"]

1. e4 {[%emt 0:00:04]} e5 {[%emt 0:00:04]} 2. Nc3 {[%emt 0:00:07]} Nf6 {[%emt 0:00:28]} 3. Bc4 {[%emt 0:00:22]} Bc5 {[%emt 0:00:25]} 4. d3 {[%emt 0:00:27]} Ng4 {[%emt 0:00:35]} 5. Nf3 {[%emt 0:01:12]} Nxf2 {[%emt 0:00:34]} 6. Qe2 {[%emt 0:00:55]} Nxh1 {[%emt 0:00:09]} 7. Be3 {[%emt 0:00:18]} Bxe3 {[%emt 0:00:27]} 8. Qxe3 {[%emt 0:00:14]} Qe7 {[%emt 0:00:35]} 9. O-O-O {[%emt 0:00:20]} Nc6 {[%emt 0:00:32]} 10. Rxh1 {[%emt 0:00:19]} d6 {[%emt 0:00:10]} 11. Bb5 {[%emt 0:00:28]} Bd7 {[%emt 0:00:11]} 12. Nd5 {[%emt 0:00:28]} Qe6 {[%emt 0:00:42]} 13. Nxc7+ {[%emt 0:00:26]} Ke7 {[%emt 0:00:33]} 14. Nxe6 {[%emt 0:00:17]} Bxe6 {[%emt 0:00:19]} 15. Bxc6 {[%emt 0:00:26]} bxc6 {[%emt 0:00:12]} 16. Ng5 {[%emt 0:00:29]} Bxa2 {[%emt 0:00:39]} 17. Rf1 {[%emt 0:01:07]} Rhf8 {[%emt 0:01:23]} 18. Nxh7 {[%emt 0:00:10]} Rh8 {[%emt 0:00:08]} 19. Ng5 {[%emt 0:00:31]} Rxh2 {[%emt 0:00:22]} 20. Qg3 {[%emt 0:00:43]} Rah8 {[%emt 0:00:47]} 21. Qe1 {[%emt 0:01:25]} Rxg2 {[%emt 0:01:00]} 22. Nf3 {[%emt 0:00:23]} Be6 {[%emt 0:02:05]} 23. Qa5 {[%emt 0:00:44]} Rg6 {[%emt 0:00:42]} 24. Qxa7+ {[%emt 0:00:15]} Bd7 {[%emt 0:00:07]} 25. Qf2 {[%emt 0:01:11]} Rf6 {[%emt 0:00:44]} 26. Rg1 {[%emt 0:00:30]} Rh3 {[%emt 0:00:56]} 27. Rg3 {[%emt 0:00:38]} Rh1+ {[%emt 0:01:11]} 28. Kd2 {[%emt 0:00:13]} Rh4 {[%emt 0:02:08]} 29. Qg2 {[%emt 0:00:37]} Rh8 {[%emt 0:01:23]} 30. Rxg7 {[%emt 0:00:15]} Bh3 {[%emt 0:00:49]} 31. Qh2 {[%emt 0:00:26]} Rxf3 {[%emt 0:00:30]} 32. Rg3 {[%emt 0:01:18]} Rxg3 {[%emt 0:00:49]} 33. Qxg3 {[%emt 0:00:13]} Be6 {[%emt 0:00:32]} 34. Qg7 {[%emt 0:00:32]} Rh2+ {[%emt 0:00:16]} 35. Kc1 {[%emt 0:00:37]} Rh1+ {[%emt 0:00:25]} 36. Kd2 {[%emt 0:00:14]} Rh2+ {[%emt 0:00:08]} 37. Kc3 {[%emt 0:00:23]} Ba2 {[%emt 0:01:03]} 38. Qg3 {[%emt 0:00:33]} Re2 {[%emt 0:00:32]} 39. Qg5+ {[%emt 0:00:49]} Ke6 {[%emt 0:00:24]} 40. d4 {[%emt 0:00:46]} exd4+ {[%emt 0:00:32]} 41. Kxd4 {[%emt 0:30:28]} Rd2+ {[%emt 0:30:28]} 42. Qxd2 {[%emt 0:00:32]} c5+ {[%emt 0:00:25]} 43. Ke3 {[%emt 0:00:22]} f6 {[%emt 0:00:20]} 44. Qa5 {[%emt 0:00:38]} Bb1 {[%emt 0:00:28]} 45. Kd3 {[%emt 0:00:22]} Ke5 {[%emt 0:00:20]} 46. Qd8 {[%emt 0:00:57]} Ba2 {[%emt 0:00:27]} 47. b3 {[%emt 0:00:20]} Bb1 {[%emt 0:00:32]} 48. Qe8+ {[%emt 0:00:36]} Kf4 {[%emt 0:00:14]} 49. Qe7 {[%emt 0:00:33]} c4+ {[%emt 0:01:02]} 50. bxc4 {[%emt 0:00:16]} Kg5 {[%emt 0:00:42]} 51. Qxd6 {[%emt 0:00:30]} Ba2 {[%emt 0:00:29]} 52. e5 {[%emt 0:00:29]} fxe5 {[%emt 0:00:18]} 53. Qxe5+ {[%emt 0:00:36]} Kg4 {[%emt 0:00:11]} 54. Qe3 {[%emt 0:00:29]} Bxc4+ {[%emt 0:00:19]} 55. Kxc4 {[%emt 0:00:26]} Kf5 {[%emt 0:00:10]} 56. Kd4 {[%emt 0:00:16]} Kf6 {[%emt 0:00:24]} 57. Kd5 {[%emt 0:00:21]} Kf7 {[%emt 0:00:11]} 58. Kd6 {[%emt 0:00:09]} Kf8 {[%emt 0:02:08]} 59. Kd7 {[%emt 0:00:10]} Kg7 {[%emt 0:00:12]} 60. Qf3 {[%emt 0:00:21]} Kg6 {[%emt 0:02:09]} 61. Ke7 {[%emt 0:00:06]} Kg5 {[%emt 0:00:24]} 62. Ke6 {[%emt 0:00:17]} Kg6 {[%emt 0:00:10]} 63. Qg3+ {[%emt 0:01:35]} Kh5 {[%emt 0:00:30]} 64. Kf6 {[%emt 0:00:23]} Kh6 {[%emt 0:00:13]} 65. Qh3# {[%emt 0:00:20]} 1-0

[Event "CZE-ch Youth G10-G12-G14 2022"]
[Site "Luhacovice"]
[Date "2022.03.14"]
[Round "4.9"]
[White "Melicharova Veronika"]
[Black "Tarielasvili Kira"]
[Result "1-0"]
[ECO "C36"]
[WhiteElo "1000"]
[BlackElo "1000"]
[Annotator "NA"]
[PlyCount "37"]
[EventDate "2022.03.12"]
[EventType "swiss"]
[EventCountry "CZE"]
[SourceTitle "playchess.com"]
[Source "ChessBase"]
[SourceQuality "1"]
[TimeControl "40/5400+30:1800+30"]

1. e4 {[%emt 0:00:04]} e5 {[%emt 0:00:51]} 2. f4 {[%emt 0:00:17]} exf4 {[%emt 0:00:20]} 3. Nf3 {[%emt 0:00:12]} d5 {[%emt 0:01:07]} 4. exd5 {[%emt 0:00:43]} Bg4 {[%emt 0:03:07]} 5. Nc3 {[%emt 0:00:30]} Bc5 {[%emt 0:00:30]} 6. Be2 {[%emt 0:01:39]} Qe7 {[%emt 0:01:01]} 7. d4 {[%emt 0:02:42]} Bb4 {[%emt 0:03:36]} 8. O-O {[%emt 0:00:30]} Nf6 {[%emt 0:00:30]} 9. Re1 {[%emt 0:00:11]} Ne4 {[%emt 0:03:06]} 10. Bxf4 {[%emt 0:01:29]} Nxc3 {[%emt 0:00:38]} 11. bxc3 {[%emt 0:01:03]} Bxc3 {[%emt 0:00:13]} 12. Bb5+ {[%emt 0:00:13]} c6 {[%emt 0:03:02]} 13. Rxe7+ {[%emt 0:00:18]} Kxe7 {[%emt 0:00:42]} 14. dxc6 {[%emt 0:00:39]} bxc6 {[%emt 0:00:55]} 15. Rb1 {[%emt 0:01:58]} cxb5 {[%emt 0:03:34]} 16. Rxb5 {[%emt 0:00:29]} Nc6 {[%emt 0:03:36]} 17. Qe2+ {[%emt 0:01:16]} Kd7 {[%emt 0:03:28]} 18. Ne5+ {[%emt 0:00:31]} Nxe5 {[%emt 0:02:59]} 19. Qxe5 {[%emt 0:00:00]} 1-0